fUST/lending_fUST_20260312
["ID","MTS","AMOUNT","RATE_DAILY","PERIOD"]
[408222406,1773261038555,-500.0,0.00014103,2]
[408222408,1773261038564,-500.0,0.00014103,2]
[408222410,1773261038573,-650.66899135,0.00014103,2]
[408222412,1773261038583,-500.0,0.00014103,2]
[408222414,1773261038592,-500.0,0.00014103,2]
[408222416,1773261038601,-500.0,0.00014103,2]
[408222418,1773261038610,-500.0,0.00014103,2]
[408222420,1773261038620,-500.0,0.00014103,2]
[408222422,1773261038629,-500.0,0.00014103,2]
[408222424,1773261038637,-500.0,0.00014103,2]
[408222426,1773261038646,-382.3121225,0.00014104,2]
[408222428,1773261038655,-173190.23197381,0.00014106,2]
[408222430,1773261038666,-1045081.7869256,0.00014106,2]
[408222514,1773261040882,-4369.70325648,0.00013965,2]
[408222633,1773261043439,-1226.05301822,0.00013965,2]
[408222634,1773261043451,-1050.59287838,0.00013965,2]
[408222635,1773261043547,-4740.16662601,0.00013965,2]
[408222636,1773261043561,-2271.35168463,0.00013965,2]
[408222637,1773261043602,-10469.36062953,0.00013965,2]
[408222638,1773261043614,-445.37030241,0.00013965,2]
[408222644,1773261046618,-1873.52235704,0.00013965,2]
[408222645,1773261046629,-1257.87188007,0.00013965,2]
[408222646,1773261046640,-346.38830132,0.00013965,2]
[408222647,1773261046651,-83992.03560214,0.00013965,2]
[408222648,1773261046662,-14942.98633211,0.00013965,2]
[408222649,1773261046672,-5661.95488558,0.00013965,2]
[408223261,1773261994123,-812.7000002,0.00011785,2]
[408223262,1773261994143,-193.47411488,0.00011904,2]
[408223263,1773261994163,-586.40091797,0.00012111,2]
[408223264,1773261994184,-4762.45670897,0.0001215,2]
[408223542,1773262238514,-5000.0,0.0001199,2]
[408223543,1773262238524,-589.0,0.0001199,2]
[408223544,1773262238533,-200.05394998,0.00012211,2]
[408223545,1773262238543,-150.87486577,0.00013316,2]
[408223546,1773262238552,-254.33049127,0.00013316,2]
[408223547,1773262238567,-203.55608187,0.00013316,2]
[408223548,1773262238576,-186.76611054,0.00013316,2]
[408223549,1773262238585,-500.0,0.00013316,2]
[408223550,1773262238594,-500.0,0.00013371,2]
[408223551,1773262238603,-500.0,0.00013426,2]
[408223552,1773262238613,-1572.81213416,0.00013447,2]
[408223553,1773262238622,-50000.0,0.00013447,2]
[408223554,1773262238632,-1200.0,0.00013454,2]
[408223555,1773262238641,-189.0,0.00013455,2]
[408223556,1773262238650,-300.0,0.00013455,2]
[408223557,1773262238659,-300.0,0.00013455,2]
[408223558,1773262238668,-300.0,0.00013455,2]
[408223559,1773262238677,-500.0,0.00013456,2]
[408223560,1773262238686,-500.0,0.00013456,2]
[408223561,1773262238696,-33.47950483,0.00013456,2]
[408223582,1773262244336,-150.42494606,0.00013456,2]
[408223584,1773262244345,-534.10740611,0.0001349,2]
[408223585,1773262244355,-669.33457859,0.000135,2]
[408223586,1773262244365,-500.0,0.00013511,2]
[408223587,1773262244374,-500.0,0.00013511,2]
[408223588,1773262244383,-463.90635278,0.00013546,2]
[408223589,1773262244392,-500.0,0.00013546,2]
[408223590,1773262244402,-500.0,0.00013546,2]
[408223591,1773262244412,-500.0,0.00013546,2]
[408223592,1773262244421,-500.0,0.00013546,2]
[408223593,1773262244431,-500.0,0.00013546,2]
[408223594,1773262244440,-500.0,0.00013546,2]
[408223595,1773262244449,-500.0,0.00013546,2]
[408223596,1773262244459,-500.0,0.00013546,2]
[408223597,1773262244470,-500.0,0.00013546,2]
[408223598,1773262244479,-500.0,0.00013546,2]
[408223599,1773262244488,-346.92488917,0.00013546,2]
[408223600,1773262244498,-500.0,0.00013546,2]
[408223601,1773262244507,-500.0,0.00013546,2]
[408223602,1773262244517,-500.0,0.00013546,2]
[408223603,1773262244526,-500.0,0.00013546,2]
[408223604,1773262244535,-500.0,0.00013546,2]
[408223605,1773262244545,-500.0,0.00013546,2]
[408223606,1773262244554,-500.0,0.00013546,2]
[408223607,1773262244564,-500.0,0.00013546,2]
[408223608,1773262244574,-500.0,0.00013546,2]
[408223609,1773262244583,-500.0,0.00013546,2]
[408223610,1773262244593,-500.0,0.00013546,2]
[408223611,1773262244602,-500.0,0.00013546,2]
[408223612,1773262244612,-500.0,0.00013546,2]
[408223613,1773262244621,-500.0,0.00013546,2]
[408223614,1773262244631,-500.0,0.00013546,2]
[408223615,1773262244640,-500.0,0.00013546,2]
[408223616,1773262244650,-500.0,0.00013546,2]
[408223617,1773262244659,-500.0,0.00013546,2]
[408223618,1773262244668,-500.0,0.00013546,2]
[408223619,1773262244680,-500.0,0.00013546,2]
[408223620,1773262244690,-500.0,0.00013546,2]
[408223621,1773262244699,-500.0,0.00013546,2]
[408223622,1773262244709,-500.0,0.00013546,2]
[408223623,1773262244718,-500.0,0.00013546,2]
[408223624,1773262244727,-500.0,0.00013546,2]
[408223625,1773262244737,-500.0,0.00013546,2]
[408223626,1773262244746,-500.0,0.00013546,2]
[408223627,1773262244755,-500.0,0.00013546,2]
[408223628,1773262244764,-500.0,0.00013546,2]
[408223629,1773262244774,-500.0,0.00013546,2]
[408223630,1773262244784,-246.16258362,0.00013546,2]
[408223631,1773262244793,-500.0,0.00013546,2]
[408223632,1773262244802,-500.0,0.00013546,2]
[408223633,1773262244812,-500.0,0.00013546,2]
[408223634,1773262244822,-500.0,0.00013546,2]
[408223635,1773262244831,-500.0,0.00013546,2]
[408223636,1773262244841,-500.0,0.00013546,2]
[408223637,1773262244853,-500.0,0.00013546,2]
[408223638,1773262244863,-500.0,0.00013546,2]
[408223639,1773262244872,-500.0,0.00013546,2]
[408223640,1773262244882,-500.0,0.00013546,2]
[408223641,1773262244894,-252.38898539,0.00013546,2]
[408223642,1773262244904,-500.0,0.00013546,2]
[408223643,1773262244914,-500.0,0.00013546,2]
[408223644,1773262244924,-500.0,0.00013546,2]
[408223645,1773262244934,-500.0,0.00013546,2]
[408223646,1773262244943,-500.0,0.00013546,2]
[408223647,1773262244952,-500.0,0.00013546,2]
[408223648,1773262244962,-500.0,0.00013546,2]
[408223649,1773262244971,-500.0,0.00013546,2]
[408223650,1773262244980,-500.0,0.00013546,2]
[408223651,1773262244990,-500.0,0.00013546,2]
[408223652,1773262244999,-500.0,0.00013546,2]
[408223653,1773262245009,-500.0,0.00013546,2]
[408223654,1773262245019,-500.0,0.00013547,2]
[408223655,1773262245028,-581.31555351,0.00013564,2]
[408223656,1773262245037,-500.0,0.00013566,2]
[408223657,1773262245046,-593.57887012,0.00013566,2]
[408223658,1773262245056,-5628.09524058,0.00013632,2]
[408223659,1773262245065,-500.0,0.00013698,2]
[408223660,1773262245075,-374.33687122,0.00013698,2]
[408223661,1773262245085,-500.0,0.00013698,2]
[408223662,1773262245095,-179.91004498,0.00013699,2]
[408223663,1773262245104,-1000.0,0.00013699,2]
[408223664,1773262245113,-1000.0,0.00013699,2]
[408223665,1773262245122,-373.07909789,0.00013699,2]
[408223666,1773262245131,-214.46130067,0.00013713,2]
[408223667,1773262245141,-75021.49310277,0.00013722,2]
[408223668,1773262245153,-4158.82046408,0.00013722,2]
[408223669,1773262245164,-729.67770619,0.00013722,2]
[408223670,1773262245259,-706.114638,0.00013722,2]
[408223674,1773262246508,-3071.39409852,0.00013722,2]
[408223677,1773262246563,-3699.79521852,0.00013722,2]
[408223680,1773262920437,-2319.73053805,0.00012051,2]
[408223705,1773263431475,-673.41,0.0001146,2]
[408223712,1773263431530,-367.38335282,0.0001146,2]
[408223714,1773263431541,-38.58288557,0.0001146,2]
[408223716,1773263431551,-581.0,0.0001146,2]
[408223718,1773263431560,-5000.0,0.00011576,2]
[408223720,1773263431569,-204.95857603,0.00011752,2]
[408223722,1773263431578,-1200.0,0.00012392,2]
[408223724,1773263431588,-1341.01140793,0.00012394,2]
[408223726,1773263431596,-461.96206137,0.00012459,2]
[408223728,1773263431605,-2007.32,0.000128,2]
[408223731,1773263431614,-752.84,0.0001281,2]
[408223733,1773263431624,-996.79272163,0.00012902,2]
[408223735,1773263431633,-1376.21061739,0.00013244,2]
[408223737,1773263431642,-5837.31524201,0.00013246,2]
[408223739,1773263431651,-151.0,0.000133,2]
[408223741,1773263431661,-151.0,0.000133,2]
[408223743,1773263431671,-500.0,0.00013344,2]
[408223745,1773263431680,-500.0,0.00013344,2]
[408223747,1773263431689,-500.0,0.00013344,2]
[408223749,1773263431698,-500.0,0.00013344,2]
[408223751,1773263431708,-594.10276546,0.00013344,2]
[408223753,1773263431717,-500.0,0.00013344,2]
[408223755,1773263431726,-500.0,0.00013344,2]
[408223757,1773263431735,-500.0,0.00013344,2]
[408223759,1773263431744,-500.0,0.00013344,2]
[408223761,1773263431753,-500.0,0.00013344,2]
[408223764,1773263431763,-500.0,0.00013344,2]
[408223765,1773263431772,-500.0,0.00013344,2]
[408223767,1773263431781,-500.0,0.00013344,2]
[408223769,1773263431789,-500.0,0.00013344,2]
[408223772,1773263431798,-500.0,0.00013344,2]
[408223774,1773263431808,-500.0,0.00013344,2]
[408223776,1773263431816,-500.0,0.00013344,2]
[408223778,1773263431825,-500.0,0.00013344,2]
[408223780,1773263431835,-500.0,0.00013344,2]
[408223782,1773263431843,-225.23889853,0.00013344,2]
[408223784,1773263431852,-500.0,0.00013344,2]
[408223786,1773263431861,-500.0,0.00013344,2]
[408223787,1773263431870,-490.07951094,0.00013344,2]
[408223789,1773263431879,-500.0,0.00013344,2]
[408223791,1773263431888,-500.0,0.00013345,2]
[408223793,1773263431897,-536.73867969,0.00013345,2]
[408223795,1773263431906,-53194.78568373,0.00013346,2]
[408223798,1773263431917,-1125.98825827,0.00013346,2]
[408223800,1773263431928,-644.75720034,0.00013346,2]
[408223802,1773263431938,-6148.68833818,0.00013346,2]
[408224202,1773263437688,-1152.14854256,0.00013346,2]
[408224203,1773263437745,-1712.19825728,0.00013346,2]
[408224204,1773263437852,-1321.8647845,0.00013346,2]
[408224205,1773263437863,-3096.06153313,0.00013346,2]
[408224212,1773263440030,-398.00552291,0.00013212,2]
[408224222,1773263442700,-4640.01197933,0.00013212,2]
[408224223,1773263442712,-7908.76646077,0.00013212,2]
[408224224,1773263442721,-2910.9403439,0.00013212,2]
[408224225,1773263442734,-435.0,0.00013212,2]
[408224226,1773263442808,-1654.0596561,0.00013212,2]
[408224227,1773263442818,-2981.29190051,0.00013346,2]
[408224236,1773263445647,-2170.56619972,0.00013346,2]
[408226565,1773264002403,158.24,2e-05,2]
[408226566,1773264002672,158.24,2e-05,2]
[408226572,1773264553136,-5000.0,5.139e-05,2]
[408226573,1773264553158,-211.02735066,5.165e-05,2]
[408226574,1773264553179,-167.515009,5.191e-05,2]
[408226575,1773264553201,-1019.89425875,5.233e-05,2]
[408226576,1773264553220,-250.0,6.869e-05,2]
[408226577,1773264553241,-249.01227378,7.165e-05,2]
[408226578,1773264553261,-286.9971969,9.165e-05,2]
[408226579,1773264553281,-1200.0,9.45e-05,2]
[408226580,1773264553301,-300.0,9.45e-05,2]
[408226581,1773264553323,-2467.96745449,9.451e-05,2]
[408226607,1773264631713,-925.33631496,9.356e-05,2]
[408226610,1773264631726,-3595.62267298,9.356e-05,2]
[408226612,1773264631738,-479.04101206,9.356e-05,2]
[408226614,1773264631748,-551.0,9.356e-05,2]
[408226616,1773264631758,-116.55935107,9.451e-05,2]
[408226618,1773264631767,-113.58271779,0.00011165,2]
[408226620,1773264631781,-211.39940223,0.00011165,2]
[408226622,1773264631791,-300.0,0.00011176,2]
[408226624,1773264631800,-903.89870135,0.00011176,2]
[408226710,1773264637863,-296.10129865,0.00011176,2]
[408226711,1773264637873,-4450.30424328,0.00011177,2]
[408226712,1773264637883,-800.0,0.00011193,4]
[408226713,1773264637892,-259.96,0.000112,2]
[408226714,1773264637902,-8937.57823627,0.00011277,2]
[408226715,1773264637911,-500.0,0.00011474,2]
[408226716,1773264637921,-500.0,0.00011474,2]
[408226717,1773264637931,-500.0,0.00011474,2]
[408226718,1773264637940,-500.0,0.00011474,2]
[408226719,1773264637949,-332.23105677,0.00011474,2]
[408226720,1773264637959,-500.0,0.00011474,2]
[408226721,1773264637969,-500.0,0.00011474,2]
[408226722,1773264637978,-500.0,0.00011474,2]
[408226723,1773264637988,-500.0,0.00011474,2]
[408226724,1773264637997,-500.0,0.00011474,2]
[408226725,1773264638007,-500.0,0.00011474,2]
[408226726,1773264638016,-500.0,0.00011474,2]
[408226727,1773264638025,-500.0,0.00011474,2]
[408226728,1773264638034,-500.0,0.00011474,2]
[408226729,1773264638044,-500.0,0.00011474,2]
[408226730,1773264638053,-500.0,0.00011474,2]
[408226731,1773264638062,-500.0,0.00011474,2]
[408226732,1773264638072,-500.0,0.00011474,2]
[408226733,1773264638082,-500.0,0.00011474,2]
[408226734,1773264638091,-500.0,0.00011474,2]
[408226735,1773264638100,-564.19407864,0.00011474,2]
[408226736,1773264638110,-500.0,0.00011474,2]
[408226737,1773264638119,-500.0,0.00011474,2]
[408226738,1773264638129,-500.0,0.00011474,2]
[408226739,1773264638139,-500.0,0.00011474,2]
[408226740,1773264638149,-500.0,0.00011474,2]
[408226741,1773264638158,-500.0,0.00011474,2]
[408226742,1773264638168,-500.0,0.00011474,2]
[408226743,1773264638177,-500.0,0.00011474,2]
[408226744,1773264638187,-10013.50177572,0.00011477,2]
[408226745,1773264638196,-763.53,0.00011477,2]
[408226746,1773264638206,-185.71915499,0.00011477,2]
[408226747,1773264638215,-10802.58191777,0.00011577,2]
[408226748,1773264638224,-500.0,0.00011776,2]
[408226749,1773264638234,-392.70272142,0.00011776,2]
[408226750,1773264638244,-11685.86186859,0.00011777,2]
[408226751,1773264638254,-161.31399345,0.00011882,2]
[408226752,1773264638264,-346.0,0.00012279,2]
[408226753,1773264638274,-384.96838445,0.000127,2]
[408226754,1773264638283,-12430.11102141,0.00012787,2]
[408226755,1773264638293,-173.3,0.000129,2]
[408226756,1773264638302,-1204.18429019,0.000129,2]
[408226757,1773264638312,-483.8829318,0.00012933,2]
[408226758,1773264638323,-500.0,0.00013,2]
[408226759,1773264638332,-151.0,0.000131,2]
[408226760,1773264638341,-151.0,0.000131,2]
[408226761,1773264638352,-3576.17,0.00013112,2]
[408226762,1773264638362,-3576.17,0.00013112,2]
[408226763,1773264638374,-3576.17,0.00013112,2]
[408226764,1773264638384,-3576.17,0.00013112,2]
[408226765,1773264638393,-3576.17,0.00013112,2]
[408226766,1773264638402,-3716.31,0.00013112,2]
[408226767,1773264638411,-362.96704314,0.00013165,2]
[408226768,1773264638421,-7788.51367708,0.00013212,2]
[408226769,1773264638433,-1722.93271243,0.00013212,2]
[408226770,1773264638445,-1577.58650617,0.00013212,2]
[408226778,1773264640217,-1381.43,0.00013212,2]
[408226793,1773264644381,-2107.64814455,0.00013212,2]
[408226794,1773264644392,-660.112334,0.00013212,2]
[408226795,1773264644550,-8378.90118426,0.00013212,2]
[408226796,1773264644560,-500.0,0.00013254,2]
[408226797,1773264644573,-500.0,0.00013292,2]
[408226798,1773264644583,-407.8857576,0.00013298,2]
[408226799,1773264644592,-151.0,0.000133,2]
[408226800,1773264644601,-151.0,0.000133,2]
[408226801,1773264644610,-151.0,0.000133,2]
[408226802,1773264644620,-151.0,0.000133,2]
[408226803,1773264644629,-151.0,0.000133,2]
[408226804,1773264644638,-151.0,0.000133,2]
[408226805,1773264644647,-151.0,0.000133,2]
[408226806,1773264644656,-151.0,0.000133,2]
[408226807,1773264644665,-151.0,0.000133,2]
[408226808,1773264644674,-151.0,0.000133,2]
[408226809,1773264644683,-500.0,0.00013347,2]
[408226810,1773264644693,-500.0,0.00013402,2]
[408226811,1773264644702,-1000.0,0.00013548,2]
[408226812,1773264644711,-156.0,0.00013699,2]
[408226813,1773264644721,-156.0,0.00013699,2]
[408226814,1773264644731,-240.15449461,0.00013699,2]
[408226815,1773264644739,-499.470857,0.00013699,2]
[408226816,1773264644749,-1000.0,0.00013699,2]
[408226817,1773264644758,-261.15536852,0.00013699,2]
[408226818,1773264644767,-161.31399345,0.00013878,2]
[408226819,1773264644776,-13424.85222926,0.00013899,2]
[408226820,1773264644785,-1247.52511009,0.00013902,2]
[408226826,1773264645817,-1721.26108469,0.00013902,2]
[408226827,1773264645827,-1204.18429018,0.00013941,2]
[408226828,1773264645838,-12328.1148371,0.00013965,2]
[408226829,1773264645849,-9952.16277949,0.00013965,2]
[408226830,1773264645859,-1167.0,0.00013974,2]
[408226831,1773264645869,-1167.0,0.00013997,2]
[408226832,1773264645879,-838.09249,0.00014001,2]
[408226833,1773264645888,-1167.0,0.00014024,2]
[408226834,1773264645897,-1167.0,0.00014198,2]
[408226835,1773264645907,-1167.0,0.00014204,2]
[408226836,1773264645917,-1167.0,0.00014297,2]
[408226837,1773264645926,-1167.0,0.00014317,2]
[408226838,1773264645935,-1167.0,0.0001433,2]
[408226839,1773264645944,-1167.0,0.00014488,2]
[408226840,1773264645953,-1167.0,0.00014498,2]
[408226841,1773264645962,-1167.0,0.0001454,2]
[408226842,1773264645971,-838.09249,0.00014591,2]
[408226843,1773264645981,-219.0,0.00014658,3]
[408226844,1773264645990,-1167.0,0.00014681,2]
[408226845,1773264645999,-1167.0,0.00014699,2]
[408226846,1773264646014,-152.748264,0.00014736,2]
[408226847,1773264646025,-336.32477521,0.00014773,2]
[408226848,1773264646035,-500.0,0.00014773,2]
[408226849,1773264646044,-1167.0,0.00014792,2]
[408226850,1773264646054,-1167.0,0.00014822,2]
[408226851,1773264646063,-1167.0,0.00014889,2]
[408226852,1773264646073,-1167.0,0.00014991,2]
[408226853,1773264646083,-4692.0,0.00015,2]
[408226854,1773264646092,-3494.0,0.00015,2]
[408226855,1773264646102,-1167.0,0.00015005,2]
[408226856,1773264646111,-13732.54703883,0.00015012,2]
[408226857,1773264646121,-1167.0,0.00015048,2]
[408226858,1773264646130,-1167.0,0.0001505,2]
[408226859,1773264646140,-289.970759,0.00015068,2]
[408226860,1773264646149,-1167.0,0.00015133,2]
[408226861,1773264646159,-400.95196626,0.00015165,2]
[408226862,1773264646168,-838.09249,0.0001518,2]
[408226863,1773264646178,-1167.0,0.00015252,2]
[408226864,1773264646187,-324.92096414,0.00015291,5]
[408226865,1773264646197,-156.0,0.00015303,2]
[408226866,1773264646207,-1167.0,0.00015314,2]
[408226867,1773264646217,-551.2417694,0.00015321,2]
[408226868,1773264646227,-1167.0,0.00015385,2]
[408226869,1773264646239,-586.46337376,0.00015386,2]
[408226870,1773264646252,-580.53662624,0.00015386,2]
[408226871,1773264646262,-800.0,0.0001548,4]
[408226872,1773264646272,-162.0,0.00015753,3]
[408226873,1773264646281,-838.09249,0.0001577,2]
[408226874,1773264646290,-2150.738,0.00015847,2]
[408226875,1773264646300,-10966.11313406,0.00016124,2]
[408226876,1773264646311,-251.2277259,0.00016124,2]
[408226884,1773265202478,158.87,2e-05,2]
[408226885,1773265202745,158.87,2e-05,2]
[408226886,1773265203020,158.87,2e-05,2]
[408226887,1773265203291,158.87,2e-05,2]
[408226888,1773265203639,158.87,2e-05,2]
[408226889,1773265204366,158.87,2e-05,2]
[408226890,1773265204402,158.87,2e-05,2]
[408226891,1773265204665,158.87,2e-05,2]
[408226892,1773265204934,158.87,2e-05,2]
[408226893,1773265205466,158.87,2e-05,2]
[408226894,1773265205881,158.87,2e-05,2]
[408226896,1773265597129,-204.84024876,0.00012761,2]
[408226937,1773265832077,-595.0,0.00012407,2]
[408226940,1773265832086,-75.94,0.00012407,2]
[408226943,1773265832098,-226.79848456,0.00012407,2]
[408226945,1773265832107,-755.34453288,0.00012507,2]
[408226949,1773265832127,-138.23267981,0.00012507,2]
[408226950,1773265832137,-200.72230212,0.00012533,2]
[408226952,1773265832148,-197.38810156,0.0001257,2]
[408226954,1773265832158,-5000.0,0.00012633,2]
[408226956,1773265832168,-300.0,0.0001276,2]
[408226958,1773265832177,-300.0,0.0001276,2]
[408226960,1773265832186,-300.0,0.0001276,2]
[408226962,1773265832196,-1200.0,0.0001276,2]
[408226964,1773265832205,-4440.82883344,0.00012761,2]
[408226966,1773265832214,-888.51,0.0001294,4]
[408226968,1773265832223,-161.31399344,0.0001302,2]
[408226970,1773265832232,-283.37950522,0.00013326,2]
[408226972,1773265832241,-1000.0,0.00013699,2]
[408226974,1773265832250,-903.13821767,0.00013977,2]
[408226976,1773265832260,-300.0,0.00013996,2]
[408226978,1773265832269,-300.0,0.00013996,2]
[408226980,1773265832278,-262.0,0.00014036,2]
[408226982,1773265832288,-249.735429,0.00014077,2]
[408226984,1773265832297,-1510.06328991,0.000141,2]
[408226986,1773265832307,-197.34937475,0.00014276,2]
[408226988,1773265832316,-232.91795984,0.0001457,2]
[408226990,1773265832325,-278.0,0.0001474,3]
[408226992,1773265832334,-610.824,0.0001474,2]
[408226994,1773265832344,-31715.74194966,0.0001499,2]
[408226996,1773265832355,-3165.78623235,0.0001499,2]
[408227008,1773265838025,-25272.07532455,0.0001499,2]
[408227228,1773265840674,-876.23651836,0.0001484,2]
[408227251,1773265846015,-22.76002764,0.0001484,2]
[408227252,1773265846026,-1041.66666667,0.0001484,2]
[408227253,1773265846037,-1801.41093038,0.0001484,2]
[408227254,1773265846092,-1257.92585695,0.0001484,2]
[408227255,1773265846103,-39846.39649344,0.0001499,2]
[408227256,1773265846112,-3278.19917769,0.00015,2]
[408227264,1773266403580,159.74,2e-05,2]
[408227281,1773267032013,-5000.0,0.00012657,2]
[408227282,1773267032023,-599.0,0.00012657,2]
[408227285,1773267032032,-200.72230211,0.00012658,2]
[408227287,1773267032041,-1200.0,0.00012757,2]
[408227289,1773267032050,-3119.20046044,0.00012758,2]
[408227291,1773267032060,-188.78198033,0.00012885,2]
[408227293,1773267032070,-300.0,0.00012957,2]
[408227295,1773267032079,-300.0,0.00012957,2]
[408227297,1773267032088,-300.0,0.00012957,2]
[408227298,1773267032097,-300.0,0.00012957,2]
[408227300,1773267032106,-5927.14888597,0.00012958,2]
[408227303,1773267032118,-699.28404284,0.00012958,2]
[408227305,1773267032127,-250.0,0.00013,2]
[408227311,1773267032432,-7725.26279236,0.00013158,2]
[408227312,1773267032442,-208.59880246,0.00013295,2]
[408227313,1773267032452,-7144.0360267,0.00013358,2]
[408227314,1773267032463,-1187.24463996,0.00013358,2]
[408227315,1773267032474,-5863.75536004,0.00013458,2]
[408227318,1773267038212,-473.4914349,0.00012531,2]
[408227319,1773267038268,-1692.57216549,0.00012531,2]
[408227320,1773267038278,-188.78198033,0.00012658,2]
[408227321,1773267038288,-2985.72564619,0.00013458,2]
[408227322,1773267038297,-50000.0,0.00013458,2]
[408227323,1773267038306,-1000.0,0.00013699,2]
[408227324,1773267038316,-9376.62291258,0.0001386,2]
[408227325,1773267038325,-1000.0,0.00014596,2]
[408227326,1773267038334,-5253.5837178,0.00014612,2]
[408227327,1773267038343,-222.76273679,0.00014658,2]
[408227328,1773267038352,-36437.41804886,0.000147,4]
[408227329,1773267038362,-151.0,0.000147,2]
[408227330,1773267038371,-182.80875797,0.0001471,2]
[408227331,1773267038380,-500.0,0.0001471,2]
[408227332,1773267038389,-500.0,0.0001471,2]
[408227333,1773267038398,-507.13267541,0.0001471,2]
[408227334,1773267038408,-624.89190499,0.0001471,2]
[408227335,1773267038417,-151.0,0.00014711,2]
[408227336,1773267038427,-151.0,0.00014712,2]
[408227337,1773267038436,-104214.29821677,0.00014712,2]
[408227339,1773267040724,-723.73945025,0.00014565,2]
[408227340,1773267040739,-1061.69153269,0.00014565,2]
[408227341,1773267040750,-1223.7945292,0.00014565,2]
[408227352,1773267043394,-1021.08288828,0.00014565,2]
[408227353,1773267043405,-418.93857618,0.00014565,2]
[408227357,1773267046187,-366.0,0.00014565,2]
[408227358,1773267046245,-47443.70922805,0.00014565,2]
[408227359,1773267046254,-281873.36796467,0.00014712,2]
[408227360,1773267046357,-12910.15621236,0.00014712,2]
[408227368,1773268146483,-4671.32398303,5.479e-05,2]
[408227565,1773268238377,-303.67601697,5.479e-05,2]
[408227566,1773268238387,-1143.94840536,0.0001296,2]
[408227567,1773268238399,-829.99240682,0.0001296,2]
[408227568,1773268238409,-153.55189627,0.00013499,2]
[408227569,1773268238419,-173.8323354,0.00013599,2]
[408227570,1773268238428,-1000.0,0.00013699,2]
[408227571,1773268238437,-168.111218,0.00013949,2]
[408227572,1773268238447,-168.111218,0.00013949,61]
[408227573,1773268238456,-168.111218,0.00013949,120]
[408227574,1773268238466,-790.24594047,0.00014369,2]
[408227575,1773268238475,-1167.43345066,0.00014369,2]
[408227576,1773268238497,-1490.76119434,0.00014369,2]
[408227577,1773268238508,-1630.8014308,0.00014369,2]
[408227578,1773268238519,-1118.20385878,0.00014369,2]
[408228051,1773268245075,-1722.93271243,0.00014325,2]
[408228053,1773268245084,-16020.52561107,0.00014369,2]
[408228055,1773268245094,-185.19189519,0.00014469,2]
[408228197,1773268246394,-14.80810481,0.00014469,2]
[408228199,1773268246404,-3484.26722215,0.0001447,2]
[408230361,1773269149133,-812.7000002,0.00012897,2]
[408230362,1773269149154,-5000.0,0.00013027,2]
[408230363,1773269149174,-180.86755548,0.00013359,2]
[408230364,1773269149196,-611.0,0.00013426,2]
[408230365,1773269149216,-249.7354298,0.00013699,2]
[408230366,1773269149237,-1000.0,0.00013699,2]
[408230367,1773269149258,-1000.0,0.00013699,2]
[408230368,1773269149279,-1200.0,0.00013838,2]
[408230369,1773269149303,-217.0017831,0.00013839,2]
[408230370,1773269149323,-166.66666668,0.00013939,2]
[408230371,1773269149343,-166.66666666,0.00014057,2]
[408230372,1773269149365,-691.46519792,0.00014173,2]
[408230373,1773269149385,-166.66666666,0.00014175,2]
[408230374,1773269149404,-234.0,0.00014179,2]
[408230375,1773269149424,-4093.07329377,0.00014225,2]
[408230376,1773269149448,-437.4243335,0.00014269,2]
[408230377,1773269149469,-2170.50926723,0.0001427,2]
[408230382,1773269245144,-1085.0089154,0.00014173,2]
[408230383,1773269245168,-143675.9935636,0.0001427,2]
[408230414,1773269432427,-867.53430758,0.00013699,2]
[408230646,1773269438655,-132.46569242,0.00013699,2]
[408230647,1773269438664,-615.0,0.00013699,2]